[Event "Early-Titled-Tuesday-Blitz-March-19-2024"]
[Site "Chess.com"]
[Date "2024.03.19"]
[Round "1"]
[White "FormerProdigy"]
[Black "StankovicIvan"]
[Result "1/2-1/2"]
[WhiteElo "2958"]
[BlackElo "2541"]
[TimeControl "180+1"]
[EndTime "8:08:40 PDT"]
[Termination "Game drawn by agreement"]

1. e3 {[%clk 0:03:00.9]} 1... g6 {[%clk 0:02:58.9]} 2. Nf3 {[%clk 0:02:59.9]}
2... Bg7 {[%clk 0:02:59.8]} 3. d4 {[%clk 0:03:00.1]} 3... Nf6 {[%clk 0:03:00.3]}
4. c4 {[%clk 0:03:00.1]} 4... O-O {[%clk 0:03:01.2]} 5. Be2 {[%clk 0:02:58.8]}
5... d6 {[%clk 0:03:02.1]} 6. O-O {[%clk 0:02:57.7]} 6... Nbd7 {[%clk 0:03:03]}
7. Nc3 {[%clk 0:02:57.2]} 7... e5 {[%clk 0:03:02.6]} 8. Qc2 {[%clk 0:02:56.1]}
8... Re8 {[%clk 0:03:02.7]} 9. b4 {[%clk 0:02:51.4]} 9... c6 {[%clk 0:02:57.9]}
10. Rb1 {[%clk 0:02:44.9]} 10... e4 {[%clk 0:02:55.7]} 11. Nd2 {[%clk
0:02:44.6]} 11... Qe7 {[%clk 0:02:55.6]} 12. a4 {[%clk 0:02:36.4]} 12... h5
{[%clk 0:02:54.8]} 13. Re1 {[%clk 0:02:27.4]} 13... Nf8 {[%clk 0:02:52.8]} 14.
Ba3 {[%clk 0:02:12.4]} 14... h4 {[%clk 0:02:50]} 15. h3 {[%clk 0:02:12.2]} 15...
N8h7 {[%clk 0:02:49.7]} 16. b5 {[%clk 0:02:07.1]} 16... Ng5 {[%clk 0:02:42.6]}
17. Bf1 {[%clk 0:02:05.9]} 17... Bf5 {[%clk 0:02:38.2]} 18. bxc6 {[%clk
0:01:42.8]} 18... bxc6 {[%clk 0:02:38.1]} 19. a5 {[%clk 0:01:41]} 19... Qd7
{[%clk 0:02:27.7]} 20. Kh2 {[%clk 0:01:38.5]} 20... c5 {[%clk 0:02:09]} 21. dxc5
{[%clk 0:01:15.5]} 21... dxc5 {[%clk 0:02:08.8]} 22. Bxc5 {[%clk 0:01:16.3]}
22... Qc7+ {[%clk 0:02:05.5]} 23. Kh1 {[%clk 0:01:16.8]} 23... Qxc5 {[%clk
0:02:05.6]} 24. Nb3 {[%clk 0:01:17.7]} 24... Qe5 {[%clk 0:01:53.8]} 25. Nd4
{[%clk 0:01:18]} 25... Bf8 {[%clk 0:01:46.9]} 26. Rb5 {[%clk 0:01:16.8]} 26...
Bc5 {[%clk 0:01:40.9]} 27. Na4 {[%clk 0:00:55.8]} 27... Rac8 {[%clk 0:01:40.3]}
28. Nb3 {[%clk 0:00:55.8]} 28... Ne6 {[%clk 0:01:31.3]} 29. Rd1 {[%clk 0:00:51]}
29... a6 {[%clk 0:01:29]} 30. Rxc5 {[%clk 0:00:34.2]} 30... Nxc5 {[%clk
0:01:28.8]} 31. Naxc5 {[%clk 0:00:35.1]} 31... Rxc5 {[%clk 0:01:28.8]} 32. Nxc5
{[%clk 0:00:36]} 32... Qxc5 {[%clk 0:01:29.4]} 33. Qc3 {[%clk 0:00:36.9]} 33...
Qe5 {[%clk 0:01:28.3]} 34. Qxe5 {[%clk 0:00:35.4]} 34... Rxe5 {[%clk 0:01:27.7]}
35. Rd6 {[%clk 0:00:36.3]} 35... Nd7 {[%clk 0:01:19.9]} 36. Rxa6 {[%clk
0:00:34.7]} 36... Kg7 {[%clk 0:01:14.7]} 37. g4 {[%clk 0:00:15.4]} 37... hxg3
{[%clk 0:01:13.5]} 38. fxg3 {[%clk 0:00:16.3]} 38... Be6 {[%clk 0:01:09.5]} 39.
g4 {[%clk 0:00:13.4]} 39... Rc5 {[%clk 0:01:03.2]} 40. Ra7 {[%clk 0:00:13.1]}
40... Ne5 {[%clk 0:01:01.4]} 41. a6 {[%clk 0:00:12.7]} 41... Bxc4 {[%clk
0:01:01]} 42. Bg2 {[%clk 0:00:11.7]} 42... Bd3 {[%clk 0:00:58.1]} 43. Ra8 {[%clk
0:00:07.2]} 43... Ra5 {[%clk 0:00:54.8]} 44. a7 {[%clk 0:00:07.5]} 44... Nc6
{[%clk 0:00:54.6]} 45. Re8 {[%clk 0:00:06.5]} 45... Rxa7 {[%clk 0:00:27.2]} 46.
Bxe4 {[%clk 0:00:06.9]} 46... Bxe4+ {[%clk 0:00:24.3]} 47. Rxe4 {[%clk
0:00:07.8]} 47... Re7 {[%clk 0:00:24.4]} 48. Rc4 {[%clk 0:00:08.4]} 48... Ne5
{[%clk 0:00:24.5]} 49. Rc3 {[%clk 0:00:08.5]} 49... Nf3 {[%clk 0:00:24.6]} 50.
Kg2 {[%clk 0:00:08.6]} 50... Ng5 {[%clk 0:00:24.5]} 51. h4 {[%clk 0:00:05.4]}
51... Ne4 {[%clk 0:00:25]} 52. Rc6 {[%clk 0:00:03.8]} 52... Nf6 {[%clk
0:00:25.3]} 53. Kf3 {[%clk 0:00:04.3]} 53... Nd5 {[%clk 0:00:24.5]} 54. e4
{[%clk 0:00:04.6]} 54... Nf6 {[%clk 0:00:23.8]} 55. Rc4 {[%clk 0:00:05.2]} 55...
Nd7 {[%clk 0:00:20.3]} 56. Kf4 {[%clk 0:00:05]} 56... Ne5 {[%clk 0:00:20.8]} 57.
Rd4 {[%clk 0:00:04.7]} 57... f6 {[%clk 0:00:20.8]} 58. g5 {[%clk 0:00:04.6]}
58... Nf7 {[%clk 0:00:19.7]} 59. gxf6+ {[%clk 0:00:04.2]} 59... Kxf6 {[%clk
0:00:20.6]} 60. Ra4 {[%clk 0:00:04.1]} 60... Re6 {[%clk 0:00:20.4]} 61. Ra5
{[%clk 0:00:04.1]} 61... Rb6 {[%clk 0:00:17.9]} 62. e5+ {[%clk 0:00:02.8]} 62...
Ke6 {[%clk 0:00:16]} 63. Ra4 {[%clk 0:00:03.3]} 63... Nxe5 {[%clk 0:00:13.6]}
64. Re4 {[%clk 0:00:03.6]} 64... Rb5 {[%clk 0:00:12.2]} 65. Kg5 {[%clk
0:00:03.5]} 65... Kd5 {[%clk 0:00:12.7]} 66. Ra4 {[%clk 0:00:03.2]} 66... Rb6
{[%clk 0:00:12.4]} 67. h5 {[%clk 0:00:03.7]} 67... Nf3+ {[%clk 0:00:11.8]} 68.
Kf4 {[%clk 0:00:03.8]} 68... gxh5 {[%clk 0:00:12.2]} 69. Kxf3 {[%clk 0:00:04]}
69... Rh6 {[%clk 0:00:12.5]} 70. Ra5+ {[%clk 0:00:04.4]} 70... Kc4 {[%clk
0:00:12.9]} 71. Ra4+ {[%clk 0:00:04.9]} 71... Kb3 {[%clk 0:00:13.5]} 72. Rh4
{[%clk 0:00:05.6]} 72... Rh8 {[%clk 0:00:13.3]} 73. Kg3 {[%clk 0:00:06.1]} 73...
Kc3 {[%clk 0:00:12.6]} 1/2-1/2

[Event "Early-Titled-Tuesday-Blitz-March-19-2024"]
[Site "Chess.com"]
[Date "2024.03.19"]
[Round "1"]
[White "jocmil"]
[Black "Levanzovsky"]
[Result "1/2-1/2"]
[WhiteElo "2769"]
[BlackElo "2431"]
[TimeControl "180+1"]
[EndTime "8:08:40 PDT"]
[Termination "Game drawn by stalemate"]

1. d4 {[%clk 0:02:59.7]} 1... d5 {[%clk 0:02:55.4]} 2. Bf4 {[%clk 0:02:54.4]}
2... Nf6 {[%clk 0:02:52.5]} 3. Nc3 {[%clk 0:02:54.5]} 3... c5 {[%clk 0:02:49.3]}
4. e4 {[%clk 0:02:54.3]} 4... cxd4 {[%clk 0:02:44.2]} 5. Qxd4 {[%clk 0:02:53.3]}
5... Nc6 {[%clk 0:02:42.6]} 6. Bb5 {[%clk 0:02:53.6]} 6... Bd7 {[%clk
0:02:36.3]} 7. Bxc6 {[%clk 0:02:52.6]} 7... Bxc6 {[%clk 0:02:36.2]} 8. e5 {[%clk
0:02:53.2]} 8... Ne4 {[%clk 0:02:36.2]} 9. Nge2 {[%clk 0:02:18.2]} 9... e6
{[%clk 0:02:34.7]} 10. Nxe4 {[%clk 0:02:16.5]} 10... dxe4 {[%clk 0:02:35.6]} 11.
O-O-O {[%clk 0:02:13.9]} 11... Qa5 {[%clk 0:02:29.3]} 12. a3 {[%clk 0:02:01.5]}
12... Bc5 {[%clk 0:02:27.5]} 13. Qc3 {[%clk 0:01:25.3]} 13... Qxc3 {[%clk
0:02:24.8]} 14. Nxc3 {[%clk 0:01:26.2]} 14... Bxf2 {[%clk 0:02:25]} 15. Bg3
{[%clk 0:01:10.5]} 15... e3 {[%clk 0:02:05.2]} 16. Bxf2 {[%clk 0:01:09.4]} 16...
exf2 {[%clk 0:02:06.1]} 17. Rhf1 {[%clk 0:01:09.4]} 17... Bxg2 {[%clk
0:02:04.2]} 18. Rxf2 {[%clk 0:01:10]} 18... Bc6 {[%clk 0:02:04.5]} 19. b4 {[%clk
0:01:04.7]} 19... a6 {[%clk 0:01:58]} 20. Kb2 {[%clk 0:01:03.1]} 20... O-O
{[%clk 0:01:57.3]} 21. Rfd2 {[%clk 0:01:02.3]} 21... Rfc8 {[%clk 0:01:41.8]} 22.
a4 {[%clk 0:01:00.2]} 22... Kf8 {[%clk 0:01:41.2]} 23. Kb3 {[%clk 0:00:58.8]}
23... Ke7 {[%clk 0:01:40.7]} 24. b5 {[%clk 0:00:57.7]} 24... axb5 {[%clk
0:01:40.8]} 25. axb5 {[%clk 0:00:58.6]} 25... Bf3 {[%clk 0:01:31.9]} 26. Rd7+
{[%clk 0:00:56.1]} 26... Ke8 {[%clk 0:01:31.4]} 27. R1d3 {[%clk 0:00:52.8]}
27... Bd5+ {[%clk 0:01:12.9]} 28. Nxd5 {[%clk 0:00:52.7]} 28... Kxd7 {[%clk
0:01:12.4]} 29. Nb6+ {[%clk 0:00:53.2]} 29... Kc7 {[%clk 0:01:00.2]} 30. Nxa8+
{[%clk 0:00:53]} 30... Rxa8 {[%clk 0:00:59.6]} 31. Rf3 {[%clk 0:00:51.8]} 31...
Rf8 {[%clk 0:00:55.7]} 32. Kb4 {[%clk 0:00:52.1]} 32... f5 {[%clk 0:00:52.6]}
33. exf6 {[%clk 0:00:48.3]} 33... gxf6 {[%clk 0:00:52.4]} 34. Re3 {[%clk
0:00:49]} 34... e5 {[%clk 0:00:49.2]} 35. c4 {[%clk 0:00:48.4]} 35... Kd6 {[%clk
0:00:40.7]} 36. Rd3+ {[%clk 0:00:48]} 36... Ke6 {[%clk 0:00:40.6]} 37. Kc5
{[%clk 0:00:48.1]} 37... Rc8+ {[%clk 0:00:36.5]} 38. Kb4 {[%clk 0:00:35.2]}
38... e4 {[%clk 0:00:32.9]} 39. Rh3 {[%clk 0:00:35.3]} 39... Rc7 {[%clk
0:00:23.7]} 40. c5 {[%clk 0:00:31.1]} 40... f5 {[%clk 0:00:21.1]} 41. Kc4 {[%clk
0:00:26.9]} 41... Ke5 {[%clk 0:00:16.4]} 42. b6 {[%clk 0:00:14.1]} 42... Rf7
{[%clk 0:00:16]} 43. c6 {[%clk 0:00:14]} 43... bxc6 {[%clk 0:00:15.5]} 44. Kc5
{[%clk 0:00:14.6]} 44... Kf4 {[%clk 0:00:09.6]} 45. Kxc6 {[%clk 0:00:14.1]}
45... e3 {[%clk 0:00:09.8]} 46. Rh6 {[%clk 0:00:14]} 46... e2 {[%clk 0:00:05.5]}
47. Re6 {[%clk 0:00:13.2]} 47... Rf6 {[%clk 0:00:02.9]} 48. Rxf6 {[%clk
0:00:08.3]} 48... e1=Q {[%clk 0:00:02.7]} 49. b7 {[%clk 0:00:08.8]} 49... Qc3+
{[%clk 0:00:03]} 50. Kd5 {[%clk 0:00:05.8]} 50... Qxf6 {[%clk 0:00:02]} 51.
b8=Q+ {[%clk 0:00:05.7]} 51... Kg4 {[%clk 0:00:02.1]} 52. Qg3+ {[%clk
0:00:06.4]} 52... Kh5 {[%clk 0:00:02]} 53. Qh3+ {[%clk 0:00:07.3]} 53... Kg6
{[%clk 0:00:02.2]} 54. Qg3+ {[%clk 0:00:07.9]} 54... Qg5 {[%clk 0:00:02.2]} 55.
Qd6+ {[%clk 0:00:08.6]} 55... Kg7 {[%clk 0:00:02.2]} 56. Qd7+ {[%clk 0:00:08.2]}
56... Kg6 {[%clk 0:00:02.2]} 57. Qd6+ {[%clk 0:00:08.7]} 57... Qf6 {[%clk
0:00:02.6]} 58. Qg3+ {[%clk 0:00:08.7]} 58... Kf7 {[%clk 0:00:03.1]} 59. Qc7+
{[%clk 0:00:08.5]} 59... Qe7 {[%clk 0:00:03.4]} 60. Qxe7+ {[%clk 0:00:09.1]}
60... Kxe7 {[%clk 0:00:03.6]} 61. Ke5 {[%clk 0:00:10]} 61... Kf7 {[%clk
0:00:04.4]} 62. Kxf5 {[%clk 0:00:10.5]} 62... Kg7 {[%clk 0:00:05.3]} 63. Kg5
{[%clk 0:00:11.4]} 63... h6+ {[%clk 0:00:05.5]} 64. Kh5 {[%clk 0:00:12.3]} 64...
Kh7 {[%clk 0:00:06.4]} 65. h4 {[%clk 0:00:12.8]} 65... Kg7 {[%clk 0:00:07.1]}
66. Kg4 {[%clk 0:00:13.7]} 66... Kg6 {[%clk 0:00:07.7]} 67. h5+ {[%clk
0:00:14.6]} 67... Kf6 {[%clk 0:00:08.2]} 68. Kh4 {[%clk 0:00:15.5]} 68... Kf5
{[%clk 0:00:08.5]} 69. Kg3 {[%clk 0:00:16.1]} 69... Kg5 {[%clk 0:00:09.4]} 70.
Kh3 {[%clk 0:00:17]} 70... Kxh5 {[%clk 0:00:10.2]} 71. Kg3 {[%clk 0:00:17.8]}
71... Kg5 {[%clk 0:00:11.1]} 72. Kh3 {[%clk 0:00:18.7]} 72... h5 {[%clk
0:00:12]} 73. Kg3 {[%clk 0:00:19.6]} 73... h4+ {[%clk 0:00:12.9]} 74. Kh3 {[%clk
0:00:20.2]} 74... Kh5 {[%clk 0:00:13.8]} 75. Kh2 {[%clk 0:00:20.8]} 75... Kg4
{[%clk 0:00:14.7]} 76. Kg2 {[%clk 0:00:21.7]} 76... h3+ {[%clk 0:00:15.6]} 77.
Kh2 {[%clk 0:00:22.6]} 77... Kh4 {[%clk 0:00:16.5]} 78. Kh1 {[%clk 0:00:23.4]}
78... Kg3 {[%clk 0:00:17.4]} 79. Kg1 {[%clk 0:00:24]} 79... h2+ {[%clk
0:00:18.3]} 80. Kh1 {[%clk 0:00:24.9]} 80... Kh3 {[%clk 0:00:19.2]} 1/2-1/2

[Event "Early-Titled-Tuesday-Blitz-March-19-2024"]
[Site "Chess.com"]
[Date "2024.03.19"]
[Round "1"]
[White "Kirill_Klukin"]
[Black "JERO-8914"]
[Result "1-0"]
[WhiteElo "2827"]
[BlackElo "2455"]
[TimeControl "180+1"]
[EndTime "8:08:47 PDT"]
[Termination "Kirill_Klukin won on time"]

1. Nf3 {[%clk 0:02:59]} 1... Nf6 {[%clk 0:02:58.4]} 2. e3 {[%clk 0:02:58.8]}
2... d5 {[%clk 0:02:58.3]} 3. c4 {[%clk 0:02:58.7]} 3... e6 {[%clk 0:02:58.2]}
4. b3 {[%clk 0:02:58.9]} 4... Be7 {[%clk 0:02:57.3]} 5. Bb2 {[%clk 0:02:59.3]}
5... O-O {[%clk 0:02:57.6]} 6. Nc3 {[%clk 0:02:57.7]} 6... c5 {[%clk 0:02:57.6]}
7. cxd5 {[%clk 0:02:52.1]} 7... exd5 {[%clk 0:02:58.5]} 8. d4 {[%clk 0:02:52.4]}
8... Nc6 {[%clk 0:02:58.7]} 9. Be2 {[%clk 0:02:51.2]} 9... Bg4 {[%clk
0:02:56.5]} 10. dxc5 {[%clk 0:02:49]} 10... Bxc5 {[%clk 0:02:56.6]} 11. O-O
{[%clk 0:02:49.6]} 11... Be6 {[%clk 0:02:38.3]} 12. Rc1 {[%clk 0:02:42.5]} 12...
a6 {[%clk 0:02:37.9]} 13. Nxd5 {[%clk 0:02:30.4]} 13... Nxd5 {[%clk 0:02:26.4]}
14. Rxc5 {[%clk 0:02:30.2]} 14... Nde7 {[%clk 0:02:13.8]} 15. Nd4 {[%clk
0:02:26]} 15... Nxd4 {[%clk 0:02:11.9]} 16. Bxd4 {[%clk 0:02:20.8]} 16... Nc6
{[%clk 0:02:11.2]} 17. Bb2 {[%clk 0:02:18.8]} 17... Qb6 {[%clk 0:02:07.7]} 18.
Qc1 {[%clk 0:02:16.8]} 18... Rac8 {[%clk 0:02:00.4]} 19. Bf3 {[%clk 0:02:05.9]}
19... Nb4 {[%clk 0:01:59]} 20. Rxc8 {[%clk 0:01:44.1]} 20... Rxc8 {[%clk
0:01:57.6]} 21. Qa1 {[%clk 0:01:44.9]} 21... Nc2 {[%clk 0:01:40.6]} 22. Qb1
{[%clk 0:01:44.7]} 22... Nb4 {[%clk 0:01:33.5]} 23. Bd4 {[%clk 0:01:43.6]} 23...
Qa5 {[%clk 0:01:32.8]} 24. a4 {[%clk 0:01:16.4]} 24... b5 {[%clk 0:01:30.1]} 25.
axb5 {[%clk 0:01:11.5]} 25... axb5 {[%clk 0:01:23.7]} 26. Rc1 {[%clk 0:01:11.3]}
26... Rxc1+ {[%clk 0:01:22.9]} 27. Qxc1 {[%clk 0:01:12.2]} 27... Nd3 {[%clk
0:01:18.7]} 28. Qf1 {[%clk 0:01:05]} 28... Qd2 {[%clk 0:01:15.7]} 29. Be2 {[%clk
0:00:55.3]} 29... Nc1 {[%clk 0:01:14.1]} 30. Bxb5 {[%clk 0:00:55.1]} 30... Nxb3
{[%clk 0:01:14.2]} 31. Be5 {[%clk 0:00:53.7]} 31... Qd5 {[%clk 0:01:07.2]} 32.
Bg3 {[%clk 0:00:47]} 32... Nd2 {[%clk 0:01:04.6]} 33. Qd3 {[%clk 0:00:44.2]}
33... Ne4 {[%clk 0:00:49.3]} 34. Qxd5 {[%clk 0:00:41.8]} 34... Bxd5 {[%clk
0:00:50.2]} 35. Be5 {[%clk 0:00:42.3]} 35... f6 {[%clk 0:00:47.3]} 36. Bd4
{[%clk 0:00:41.7]} 36... Nd6 {[%clk 0:00:47]} 37. Bd3 {[%clk 0:00:41.3]} 37...
Be4 {[%clk 0:00:45.5]} 38. Be2 {[%clk 0:00:41.3]} 38... Bd5 {[%clk 0:00:44.9]}
39. Bc5 {[%clk 0:00:39.6]} 39... Ne4 {[%clk 0:00:44.4]} 40. Bb4 {[%clk
0:00:37.8]} 40... Ng5 {[%clk 0:00:40.2]} 41. f3 {[%clk 0:00:35.9]} 41... Nf7
{[%clk 0:00:39.6]} 42. Kf2 {[%clk 0:00:36]} 42... Ne5 {[%clk 0:00:37.5]} 43. Bc3
{[%clk 0:00:36.3]} 43... Nf7 {[%clk 0:00:35.6]} 44. e4 {[%clk 0:00:35.4]} 44...
Be6 {[%clk 0:00:35.7]} 45. Ke3 {[%clk 0:00:35.2]} 45... Nd6 {[%clk 0:00:35]} 46.
Bb4 {[%clk 0:00:35.2]} 46... Nf7 {[%clk 0:00:33.2]} 47. f4 {[%clk 0:00:33.5]}
47... Ba2 {[%clk 0:00:33.3]} 48. g4 {[%clk 0:00:27.1]} 48... h6 {[%clk
0:00:32.9]} 49. Be7 {[%clk 0:00:25]} 49... Be6 {[%clk 0:00:32.6]} 50. h4 {[%clk
0:00:23.3]} 50... Bd7 {[%clk 0:00:31.6]} 51. g5 {[%clk 0:00:13.8]} 51... hxg5
{[%clk 0:00:31.6]} 52. hxg5 {[%clk 0:00:14.3]} 52... fxg5 {[%clk 0:00:32.5]} 53.
fxg5 {[%clk 0:00:14.9]} 53... Ne5 {[%clk 0:00:30.9]} 54. Bd6 {[%clk 0:00:13.4]}
54... Nc6 {[%clk 0:00:24.9]} 55. Bc4+ {[%clk 0:00:13.7]} 55... Kh7 {[%clk
0:00:24.1]} 56. Kf4 {[%clk 0:00:10.6]} 56... Nd8 {[%clk 0:00:22.2]} 57. Be7
{[%clk 0:00:10.8]} 57... Be6 {[%clk 0:00:20.8]} 58. Bb5 {[%clk 0:00:08.2]} 58...
Nf7 {[%clk 0:00:20.7]} 59. Bb4 {[%clk 0:00:05.7]} 59... Kg6 {[%clk 0:00:21]} 60.
Be8 {[%clk 0:00:06.3]} 60... Kh7 {[%clk 0:00:20.6]} 61. Bc3 {[%clk 0:00:06.6]}
61... Nd6 {[%clk 0:00:19.4]} 62. Ke5 {[%clk 0:00:04.2]} 62... Nxe8 {[%clk
0:00:15.9]} 63. Kxe6 {[%clk 0:00:04.4]} 63... Kg6 {[%clk 0:00:15.7]} 64. Bd2
{[%clk 0:00:04.9]} 64... Nc7+ {[%clk 0:00:15.3]} 65. Kd7 {[%clk 0:00:05.5]}
65... Nb5 {[%clk 0:00:13]} 66. e5 {[%clk 0:00:05.3]} 66... Nd4 {[%clk
0:00:08.2]} 67. e6 {[%clk 0:00:05.3]} 67... Kf5 {[%clk 0:00:05.8]} 68. e7 {[%clk
0:00:05.2]} 1-0

[Event "Early-Titled-Tuesday-Blitz-March-19-2024"]
[Site "Chess.com"]
[Date "2024.03.19"]
[Round "1"]
[White "Pingah9"]
[Black "Daaksboy"]
[Result "1-0"]
[WhiteElo "2579"]
[BlackElo "1848"]
[TimeControl "180+1"]
[EndTime "8:08:50 PDT"]
[Termination "Pingah9 won by resignation"]

1. e4 {[%clk 0:02:58.9]} 1... c5 {[%clk 0:02:59.7]} 2. Nc3 {[%clk 0:02:57.7]}
2... d6 {[%clk 0:02:59.1]} 3. g3 {[%clk 0:02:58.3]} 3... g6 {[%clk 0:02:58.9]}
4. Bg2 {[%clk 0:02:58.8]} 4... Bg7 {[%clk 0:02:59.4]} 5. d3 {[%clk 0:02:59.4]}
5... Nc6 {[%clk 0:02:59.6]} 6. Be3 {[%clk 0:02:59.9]} 6... Rb8 {[%clk
0:02:57.1]} 7. a4 {[%clk 0:02:58]} 7... a6 {[%clk 0:02:56.8]} 8. Qd2 {[%clk
0:02:57.9]} 8... b5 {[%clk 0:02:56]} 9. axb5 {[%clk 0:02:58.8]} 9... axb5 {[%clk
0:02:56.8]} 10. Nge2 {[%clk 0:02:58.9]} 10... e6 {[%clk 0:02:56.4]} 11. O-O
{[%clk 0:02:57.7]} 11... Nd4 {[%clk 0:02:53.9]} 12. Nd1 {[%clk 0:02:53.9]} 12...
Ne7 {[%clk 0:02:52.9]} 13. Nc1 {[%clk 0:02:51.8]} 13... h5 {[%clk 0:02:50.3]}
14. c3 {[%clk 0:02:51.3]} 14... Ndc6 {[%clk 0:02:50.4]} 15. h3 {[%clk
0:02:39.4]} 15... Qb6 {[%clk 0:02:47.4]} 16. Ne2 {[%clk 0:02:37.9]} 16... Na5
{[%clk 0:02:45.3]} 17. Qc2 {[%clk 0:02:32.1]} 17... Bd7 {[%clk 0:02:43.9]} 18.
d4 {[%clk 0:02:24.5]} 18... Nc4 {[%clk 0:02:43.4]} 19. Bg5 {[%clk 0:02:09]}
19... cxd4 {[%clk 0:02:37.3]} 20. Bxe7 {[%clk 0:02:07]} 20... dxc3 {[%clk
0:02:28.7]} 21. Ndxc3 {[%clk 0:01:46.4]} 21... Kxe7 {[%clk 0:02:28.1]} 22. Nf4
{[%clk 0:01:42.7]} 22... Qc5 {[%clk 0:02:20.5]} 23. b4 {[%clk 0:01:35.9]} 23...
Qd4 {[%clk 0:02:15.5]} 24. Nce2 {[%clk 0:01:27.9]} 24... Qd2 {[%clk 0:02:15.3]}
25. Qb1 {[%clk 0:00:58.3]} 25... Bxa1 {[%clk 0:02:09.5]} 26. Qxa1 {[%clk
0:00:59.2]} 26... Qb2 {[%clk 0:02:09.9]} 27. Qd1 {[%clk 0:00:58.2]} 27... Qxb4
{[%clk 0:02:09.7]} 28. Qd4 {[%clk 0:00:54.5]} 28... Qc5 {[%clk 0:01:34.9]} 29.
Nxg6+ {[%clk 0:00:54]} 29... fxg6 {[%clk 0:01:31.2]} 30. Qg7+ {[%clk 0:00:54.1]}
30... Kd8 {[%clk 0:01:31.4]} 31. Qxh8+ {[%clk 0:00:54.5]} 31... Kc7 {[%clk
0:01:32.3]} 32. Qg7 {[%clk 0:00:53.5]} 32... b4 {[%clk 0:01:30.8]} 33. Qxg6
{[%clk 0:00:48.4]} 33... b3 {[%clk 0:01:30.9]} 34. Nc3 {[%clk 0:00:43.2]} 34...
Qd4 {[%clk 0:01:29.2]} 35. Nb1 {[%clk 0:00:39.4]} 35... b2 {[%clk 0:01:28.7]}
36. Qxh5 {[%clk 0:00:37.1]} 36... Nd2 {[%clk 0:01:24.5]} 37. Qd1 {[%clk
0:00:31.8]} 37... Bb5 {[%clk 0:01:02.4]} 38. Qc2+ {[%clk 0:00:25.8]} 38... Nc4
{[%clk 0:00:52.1]} 39. Rd1 {[%clk 0:00:25]} 39... Qc5 {[%clk 0:00:50.8]} 40. e5
{[%clk 0:00:22.1]} 40... d5 {[%clk 0:00:50.6]} 41. Qh7+ {[%clk 0:00:20.9]} 41...
Kb6 {[%clk 0:00:50.6]} 42. h4 {[%clk 0:00:20.1]} 42... Ba4 {[%clk 0:00:50.2]}
43. Re1 {[%clk 0:00:18.9]} 43... Qb4 {[%clk 0:00:49.8]} 44. Rf1 {[%clk
0:00:18.1]} 44... Nd2 {[%clk 0:00:49.1]} 45. Nxd2 {[%clk 0:00:15.5]} 45... Qxd2
{[%clk 0:00:49.6]} 46. Qg6 {[%clk 0:00:14.8]} 46... Re8 {[%clk 0:00:45.8]} 47.
Rb1 {[%clk 0:00:13]} 47... Rf8 {[%clk 0:00:30.7]} 48. Qxe6+ {[%clk 0:00:11.6]}
48... Ka5 {[%clk 0:00:28.6]} 49. Qxd5+ {[%clk 0:00:11.9]} 49... Qxd5 {[%clk
0:00:27]} 50. Bxd5 {[%clk 0:00:12.8]} 50... Rb8 {[%clk 0:00:27.1]} 51. Be4
{[%clk 0:00:13.3]} 51... Rb4 {[%clk 0:00:21.3]} 52. f3 {[%clk 0:00:12.9]} 52...
Bb5 {[%clk 0:00:20.4]} 53. Kf2 {[%clk 0:00:11.9]} 53... Ka4 {[%clk 0:00:20.5]}
54. Ke3 {[%clk 0:00:11.9]} 54... Ka3 {[%clk 0:00:20.9]} 55. h5 {[%clk
0:00:12.3]} 55... Ka2 {[%clk 0:00:21.2]} 56. Rxb2+ {[%clk 0:00:08.6]} 56... Kxb2
{[%clk 0:00:20.2]} 57. h6 {[%clk 0:00:09.2]} 57... Ba4 {[%clk 0:00:19.2]} 58. h7
{[%clk 0:00:09.2]} 58... Rb8 {[%clk 0:00:19.8]} 59. g4 {[%clk 0:00:09.4]} 59...
Kc3 {[%clk 0:00:20]} 60. g5 {[%clk 0:00:09.9]} 60... Bd7 {[%clk 0:00:20.1]} 61.
g6 {[%clk 0:00:09.9]} 61... Be6 {[%clk 0:00:19.2]} 62. g7 {[%clk 0:00:10]} 62...
Kc4 {[%clk 0:00:19.3]} 63. h8=Q {[%clk 0:00:10.4]} 63... Bg8 {[%clk 0:00:18.9]}
64. Qh6 {[%clk 0:00:09]} 64... Rb3+ {[%clk 0:00:17.9]} 65. Kf4 {[%clk
0:00:08.9]} 65... Kd4 {[%clk 0:00:17.8]} 66. Qd6+ {[%clk 0:00:08.8]} 66... Kc3
{[%clk 0:00:17.8]} 67. Qc7+ {[%clk 0:00:08.5]} 67... Kb2 {[%clk 0:00:16.3]} 68.
Qc2+ {[%clk 0:00:08.4]} 68... Ka3 {[%clk 0:00:16.1]} 69. Qc1+ {[%clk 0:00:08]}
69... Rb2 {[%clk 0:00:16.1]} 70. Qxb2+ {[%clk 0:00:06.8]} 70... Kxb2 {[%clk
0:00:16.4]} 71. Kg5 {[%clk 0:00:07.4]} 71... Kc3 {[%clk 0:00:17]} 72. f4 {[%clk
0:00:07.9]} 72... Kd4 {[%clk 0:00:17.8]} 73. Bg6 {[%clk 0:00:07.9]} 73... Be6
{[%clk 0:00:16.6]} 74. Kf6 {[%clk 0:00:07.5]} 74... Ba2 {[%clk 0:00:14.9]} 75.
Bf7 {[%clk 0:00:07.4]} 75... Bb1 {[%clk 0:00:14.3]} 76. g8=Q {[%clk 0:00:07.5]}
1-0